fUSD/lending_fUSD_20240915
["ID","MTS","AMOUNT","RATE_DAILY","PERIOD"]
[338197927,1726383057048,-500.0,0.00013265,2]
[338197928,1726383057059,-500.0,0.00013265,2]
[338197929,1726383057068,-500.0,0.00013265,2]
[338197930,1726383057077,-500.0,0.00013265,2]
[338197931,1726383057087,-500.0,0.00013265,2]
[338197932,1726383057097,-500.0,0.00013265,2]
[338197933,1726383057106,-500.0,0.00013265,2]
[338197934,1726383057115,-500.0,0.00013265,2]
[338197935,1726383057124,-500.0,0.00013265,2]
[338197936,1726383057135,-500.0,0.00013265,2]
[338197937,1726383057146,-500.0,0.00013265,2]
[338197938,1726383057155,-500.0,0.00013265,2]
[338197939,1726383057165,-500.0,0.00013265,2]
[338197940,1726383057176,-500.0,0.00013265,2]
[338197941,1726383057187,-500.0,0.00013265,2]
[338197942,1726383057197,-500.0,0.00013265,2]
[338197943,1726383057207,-500.0,0.00013265,2]
[338197944,1726383057216,-1553.02,0.00013265,2]
[338197945,1726383057228,-500.0,0.00013265,2]
[338197946,1726383057238,-721.93,0.00013265,2]
[338197947,1726383057248,-500.0,0.00013265,2]
[338197948,1726383057258,-950.63,0.00013265,2]
[338197949,1726383057267,-1660.97,0.00013265,2]
[338197950,1726383057276,-1941.17,0.00013265,2]
[338197951,1726383057285,-500.0,0.00013265,2]
[338197952,1726383057295,-500.0,0.00013265,2]
[338197953,1726383057307,-2345.34,0.00013265,2]
[338197954,1726383057318,-500.0,0.00013265,2]
[338197955,1726383057327,-544.11411089,0.00013265,2]
[338197956,1726383057337,-1913.1,0.00013265,2]
[338197957,1726383057346,-500.0,0.00013265,2]
[338197958,1726383057356,-500.0,0.00013265,2]
[338197959,1726383057562,-1015.3,0.00013265,2]
[338197960,1726383057572,-296.52720708,0.00013265,2]
[338197961,1726383057582,-500.0,0.00013265,2]
[338197962,1726383057591,-500.0,0.00013265,2]
[338197963,1726383057601,-526.3,0.00013265,2]
[338197964,1726383057610,-671.07,0.00013265,2]
[338197965,1726383057620,-516.39,0.00013265,2]
[338197966,1726383057629,-500.0,0.00013265,2]
[338197967,1726383057638,-1187.5,0.00013265,2]
[338197968,1726383057648,-500.0,0.00013265,2]
[338197969,1726383057658,-500.0,0.00013265,2]
[338197970,1726383057667,-500.0,0.00013265,2]
[338197971,1726383057677,-903.85,0.00013265,2]
[338197972,1726383057687,-2823.81,0.00013265,2]
[338197973,1726383057697,-300.0,0.00013265,2]
[338197974,1726383057708,-881.4,0.00013265,2]
[338197975,1726383057717,-1914.04,0.00013265,2]
[338197976,1726383057727,-500.0,0.00013265,2]
[338197977,1726383057736,-1396.24,0.00013265,2]
[338197978,1726383057746,-2113.46,0.00013265,2]
[338197979,1726383057756,-1670.0,0.00013265,2]
[338197980,1726383057765,-1393.99,0.00013265,2]
[338197981,1726383057774,-500.0,0.00013265,2]
[338197982,1726383057783,-888.79,0.00013265,2]
[338197983,1726383057793,-500.0,0.00013265,2]
[338197984,1726383057802,-987.5,0.00013265,2]
[338197985,1726383057812,-151.0,0.00013265,2]
[338197986,1726383057822,-796.92,0.00013265,2]
[338197987,1726383057832,-500.0,0.00013265,2]
[338197988,1726383057841,-1767.77,0.00013265,2]
[338197989,1726383057851,-500.0,0.00013265,2]
[338197990,1726383057861,-865.77,0.00013265,2]
[338197991,1726383057870,-500.0,0.00013265,2]
[338197992,1726383057880,-239.94072588,0.00013265,2]
[338197993,1726383057890,-935.42,0.00013265,2]
[338197994,1726383057899,-1284.68,0.00013265,2]
[338197995,1726383057909,-791.63,0.00013265,2]
[338197996,1726383057919,-1558.6,0.00013265,2]
[338197997,1726383057928,-928.04,0.00013265,2]
[338197998,1726383057938,-945.41,0.00013265,2]
[338197999,1726383057948,-500.0,0.00013265,2]
[338198000,1726383057958,-500.0,0.00013265,2]
[338198001,1726383057968,-1718.54,0.00013265,2]
[338198002,1726383057977,-1964.15,0.00013265,2]
[338198003,1726383057987,-2382.23,0.00013265,2]
[338198004,1726383057997,-1626.69,0.00013265,2]
[338198005,1726383058007,-1840.14,0.00013265,2]
[338198006,1726383058016,-500.0,0.00013265,2]
[338198007,1726383058025,-2211.2,0.00013265,2]
[338198008,1726383058035,-843.53,0.00013265,2]
[338198009,1726383058045,-1554.21,0.00013265,2]
[338198010,1726383058054,-500.0,0.00013265,2]
[338198011,1726383058064,-500.0,0.00013265,2]
[338198012,1726383058074,-654.32,0.00013265,2]
[338198013,1726383058083,-500.0,0.00013266,2]
[338198014,1726383058093,-850.98,0.00013266,2]
[338198015,1726383058103,-614.3,0.00013266,2]
[338198016,1726383058113,-2109.79,0.00013266,2]
[338198017,1726383058124,-500.0,0.00013266,2]
[338198018,1726383058133,-1757.83,0.00013266,2]
[338198019,1726383058144,-762.73,0.00013266,2]
[338198020,1726383058158,-1153.99,0.00013266,2]
[338198021,1726383058167,-1873.43,0.00013266,2]
[338198022,1726383058176,-2262.28,0.00013266,2]
[338198023,1726383058186,-500.0,0.00013266,2]
[338198024,1726383058198,-1895.47,0.00013266,2]
[338198025,1726383058208,-1326.64,0.00013266,2]
[338198026,1726383058217,-500.0,0.00013266,2]
[338198027,1726383058230,-1833.39,0.00013266,2]
[338198028,1726383058240,-500.0,0.00013266,2]
[338198029,1726383058249,-500.0,0.00013266,2]
[338198030,1726383058258,-1761.57,0.00013266,2]
[338198031,1726383058268,-500.0,0.00013266,2]
[338198032,1726383058277,-500.0,0.00013266,2]
[338198033,1726383058286,-885.04,0.00013266,2]
[338198034,1726383058296,-737.79,0.00013266,2]
[338198035,1726383058305,-582.81,0.00013266,2]
[338198036,1726383058315,-517.99,0.00013266,2]
[338198037,1726383058324,-500.0,0.00013266,2]
[338198038,1726383058333,-1126.18,0.00013266,2]
[338198039,1726383058343,-772.72,0.00013266,2]
[338198040,1726383058352,-615.45,0.00013266,2]
[338198041,1726383058361,-500.0,0.00013266,2]
[338198042,1726383058371,-979.5,0.00013266,2]
[338198043,1726383058380,-500.0,0.00013266,2]
[338198044,1726383058390,-639.91,0.00013266,2]
[338198045,1726383058399,-500.0,0.00013266,2]
[338198046,1726383058408,-1462.26,0.00013266,2]
[338198047,1726383058419,-500.0,0.00013266,2]
[338198048,1726383058430,-1047.53,0.00013266,2]
[338198049,1726383058440,-500.0,0.00013266,2]
[338198050,1726383058449,-886.2,0.00013266,2]
[338198051,1726383058460,-701.63,0.00013266,2]
[338198052,1726383058470,-500.0,0.00013266,2]
[338198053,1726383058479,-500.0,0.00013266,2]
[338198054,1726383058489,-500.0,0.00013266,2]
[338198055,1726383058499,-1115.48,0.00013266,2]
[338198056,1726383058509,-500.0,0.00013266,2]
[338198057,1726383058518,-949.46,0.00013266,2]
[338198058,1726383058527,-500.0,0.00013266,2]
[338198059,1726383058537,-500.0,0.00013266,2]
[338198060,1726383058546,-500.0,0.00013266,2]
[338198061,1726383058556,-1500.76,0.00013266,2]
[338198062,1726383058566,-726.46,0.00013266,2]
[338198063,1726383058576,-1522.27,0.00013266,2]
[338198064,1726383058585,-500.0,0.00013266,2]
[338198065,1726383058594,-989.61,0.00013266,2]
[338198066,1726383058604,-855.64,0.00013266,2]
[338198067,1726383058613,-2479.45,0.00013266,2]
[338198068,1726383058622,-500.0,0.00013266,2]
[338198069,1726383058631,-500.0,0.00013266,2]
[338198070,1726383058641,-945.51,0.00013266,2]
[338198071,1726383058650,-500.0,0.00013266,2]
[338198072,1726383058659,-1121.22,0.00013266,2]
[338198073,1726383058668,-500.0,0.00013266,2]
[338198074,1726383058678,-500.0,0.00013266,2]
[338198075,1726383058687,-846.64,0.00013266,2]
[338198076,1726383058696,-500.0,0.00013266,2]
[338198077,1726383058705,-500.0,0.00013266,2]
[338198078,1726383058714,-500.0,0.00013266,2]
[338198079,1726383058724,-500.0,0.00013266,2]
[338198080,1726383058733,-500.0,0.00013266,2]
[338198081,1726383058742,-500.0,0.00013266,2]
[338198082,1726383058752,-500.0,0.00013266,2]
[338198083,1726383058762,-977.3,0.00013266,2]
[338198084,1726383058770,-500.0,0.00013266,2]
[338198085,1726383058781,-1877.92,0.00013266,2]
[338198086,1726383058790,-1048.09,0.00013266,2]
[338198087,1726383058799,-500.0,0.00013266,2]
[338198088,1726383058808,-2664.83,0.00013266,2]
[338198089,1726383058818,-500.0,0.00013266,2]
[338198090,1726383058828,-2017.74,0.00013266,2]
[338198091,1726383058839,-500.0,0.00013266,2]
[338198092,1726383058848,-500.0,0.00013266,2]
[338198093,1726383058857,-729.98,0.00013266,2]
[338198094,1726383058866,-604.86,0.00013266,2]
[338198095,1726383058875,-500.0,0.00013266,2]
[338198096,1726383058884,-532.5,0.00013266,2]
[338198097,1726383058893,-961.29,0.00013266,2]
[338198098,1726383058902,-835.95,0.00013266,2]
[338198099,1726383058911,-659.92,0.00013266,2]
[338198100,1726383058920,-603.14,0.00013266,2]
[338198101,1726383058929,-500.0,0.00013266,2]
[338198102,1726383058939,-783.98,0.00013266,2]
[338198103,1726383058947,-567.79,0.00013266,2]
[338198104,1726383058956,-500.0,0.00013266,2]
[338198105,1726383058965,-1348.72,0.00013266,2]
[338198106,1726383058975,-500.0,0.00013266,2]
[338198107,1726383058983,-638.51,0.00013266,2]
[338198108,1726383058993,-1185.66,0.00013266,2]
[338198109,1726383059002,-500.0,0.00013266,2]
[338198110,1726383059011,-500.0,0.00013266,2]
[338198111,1726383059020,-500.0,0.00013266,2]
[338198112,1726383059030,-500.0,0.00013266,2]
[338198113,1726383059043,-821.4,0.00013266,2]
[338198114,1726383059054,-200.75,0.00013266,2]
[338198115,1726383059063,-500.0,0.00013266,2]
[338198116,1726383059072,-737.14,0.00013266,2]
[338198117,1726383059085,-500.0,0.00013266,2]
[338198118,1726383059095,-1383.37,0.00013266,2]
[338198119,1726383059105,-2618.98,0.00013266,2]
[338198120,1726383059115,-500.0,0.00013266,2]
[338198121,1726383059125,-500.0,0.00013266,2]
[338198122,1726383059135,-847.49,0.00013266,2]
[338198123,1726383059145,-500.0,0.00013266,2]
[338198124,1726383059158,-500.0,0.00013266,2]
[338198125,1726383059168,-500.0,0.00013266,2]
[338198126,1726383059179,-500.0,0.00013266,2]
[338198127,1726383059187,-500.0,0.00013266,2]
[338198128,1726383059198,-500.0,0.00013266,2]
[338198129,1726383059209,-690.68,0.00013266,2]
[338198130,1726383059218,-500.0,0.00013266,2]
[338198131,1726383059229,-150.0,0.00013266,2]
[338198132,1726383059240,-636.55,0.00013266,2]
[338198133,1726383059250,-500.0,0.00013266,2]
[338198134,1726383059260,-500.0,0.00013266,2]
[338198135,1726383059269,-863.42,0.00013266,2]
[338198136,1726383059278,-1987.55,0.00013266,2]
[338198137,1726383059287,-500.0,0.00013266,2]
[338198138,1726383059296,-2292.0,0.00013266,2]
[338198139,1726383059305,-575.46,0.00013266,2]
[338198140,1726383059315,-1726.9,0.00013266,2]
[338198141,1726383059324,-551.51,0.00013266,2]
[338198142,1726383059333,-1899.06,0.00013266,2]
[338198143,1726383059343,-500.0,0.00013266,2]
[338198144,1726383059352,-1249.69,0.00013266,2]
[338198145,1726383059362,-500.0,0.00013266,2]
[338198146,1726383059371,-500.0,0.00013266,2]
[338198147,1726383059381,-677.89,0.00013266,2]
[338198148,1726383059390,-500.0,0.00013266,2]
[338198149,1726383059402,-2074.91,0.00013266,2]
[338198150,1726383059412,-1146.02,0.00013266,2]
[338198151,1726383059422,-891.17,0.00013266,2]
[338198152,1726383059432,-500.0,0.00013266,2]
[338198153,1726383059442,-150.0,0.00013266,2]
[338198154,1726383059452,-500.0,0.00013266,2]
[338198155,1726383059462,-500.0,0.00013266,2]
[338198156,1726383059471,-4069.21056282,0.00013266,2]
[338198157,1726383059480,-2039.48,0.00013266,2]
[338198158,1726383059490,-1050.62,0.00013266,2]
[338198159,1726383059499,-500.0,0.00013266,2]
[338198160,1726383059508,-500.0,0.00013266,2]
[338198161,1726383059518,-1538.61,0.00013266,2]
[338198162,1726383059528,-500.0,0.00013266,2]
[338198163,1726383059539,-500.0,0.00013266,2]
[338198164,1726383059550,-117.82162566,0.00013266,2]
[338198165,1726383059567,-865.49837434,0.00013266,2]
[338198166,1726383059576,-350.66006254,0.00013266,2]
[338198167,1726383059588,-1066.96993746,0.00013266,2]
[338198168,1726383059599,-500.0,0.00013266,2]
[338198169,1726383059609,-500.0,0.00013267,2]
[338198170,1726383059619,-1263.57,0.00013267,2]
[338198171,1726383059629,-644.73,0.00013267,2]
[338198172,1726383059639,-735.09,0.00013267,2]
[338198173,1726383059650,-820.56,0.00013267,2]
[338198174,1726383059661,-610.57,0.00013267,2]
[338198175,1726383059670,-630.27,0.00013267,2]
[338198176,1726383059679,-1200.14006255,0.00013267,2]
[338198177,1726383059696,-76.83993745,0.00013267,2]
[338198178,1726383059706,-1711.82,0.00013267,2]
[338198179,1726383059716,-616.54714281,0.00013267,2]
[338198180,1726383059726,-150.0,0.00013274,2]
[338198181,1726383059737,-150.0,0.00013274,2]
[338198182,1726383059747,-150.0,0.00013274,2]
[338198183,1726383059759,-150.0,0.00013274,2]
[338198184,1726383059769,-150.0,0.00013284,2]
[338198185,1726383059779,-150.0,0.00013287,2]
[338198186,1726383059790,-150.0,0.0001329,2]
[338198187,1726383059801,-150.0,0.00013292,2]
[338198188,1726383059813,-150.0,0.00013294,2]
[338198189,1726383059822,-150.0,0.00013302,2]
[338198190,1726383059831,-150.0,0.00013304,2]
[338198191,1726383059841,-150.0,0.00013308,2]
[338198192,1726383059851,-150.0,0.00013311,2]
[338198193,1726383059862,-150.0,0.00013313,2]
[338198194,1726383059871,-59.78719662,0.00013318,2]
[338198195,1726383059883,-90.21280338,0.00013318,2]
[338198196,1726383059892,-150.0,0.00013318,2]
[338198197,1726383059902,-150.0,0.00013321,2]
[338198198,1726383059912,-29.55958633,0.00013322,2]
[338198199,1726383059924,-120.44041367,0.00013322,2]
[338198200,1726383059935,-150.0,0.00013323,2]
[338198201,1726383059946,-150.0,0.00013325,2]
[338198202,1726383059957,-150.0,0.00013325,2]
[338198203,1726383059967,-150.0,0.00013329,2]
[338198204,1726383059976,-150.0,0.00013335,2]
[338198205,1726383059987,-150.0,0.00013337,2]
[338198206,1726383059996,-150.0,0.00013339,2]
[338198207,1726383060006,-486.14479021,0.00013345,2]
[338198208,1726383060018,-316.85520979,0.00013345,2]
[338198209,1726383060030,-150.0,0.00013346,2]
[338198210,1726383060039,-1548.0,0.0001336,2]
[338198211,1726383060048,-1261.0,0.0001336,2]
[338198212,1726383060058,-624.0,0.0001336,2]
[338198213,1726383060069,-448.0,0.0001336,2]
[338198214,1726383060079,-810.0,0.0001336,2]
[338198215,1726383060088,-558.0,0.0001336,2]
[338198216,1726383060097,-150.0,0.0001336,2]
[338198217,1726383060106,-932.0,0.0001336,2]
[338198218,1726383060116,-1902.0,0.0001336,2]
[338198219,1726383060125,-553.0,0.0001336,2]
[338198220,1726383060134,-428.7537442,0.0001336,2]
[338198221,1726383060145,-377.2462558,0.0001336,2]
[338198222,1726383060158,-248.0,0.0001336,2]
[338198223,1726383060167,-1124.0,0.0001336,2]
[338198224,1726383060176,-3345.0,0.0001336,2]
[338198225,1726383060185,-13481.0,0.0001336,2]
[338198226,1726383060197,-150.0,0.0001336,2]
[338198227,1726383060206,-150.0,0.0001336,2]
[338198228,1726383060215,-5863.0,0.0001336,2]
[338198229,1726383060224,-1146.0,0.0001336,2]
[338198230,1726383060235,-150.0,0.0001336,2]
[338198231,1726383060245,-150.0,0.0001336,2]
[338198232,1726383060254,-150.0,0.00013363,2]
[338198233,1726383060264,-150.0,0.00013365,2]
[338198234,1726383060274,-150.0,0.00013369,2]
[338198235,1726383060283,-238.309,0.00013375,2]
[338198236,1726383060292,-150.0,0.00013375,2]
[338198237,1726383060301,-150.0,0.00013377,2]
[338198238,1726383060311,-150.0,0.00013383,2]
[338198239,1726383060322,-150.0,0.00013385,2]
[338198240,1726383060331,-150.0,0.00013386,2]
[338198241,1726383060341,-150.0,0.00013387,2]
[338198242,1726383060351,-150.0,0.0001339,2]
[338198243,1726383060361,-150.0,0.00013391,2]
[338198244,1726383060370,-150.0,0.00013392,2]
[338198245,1726383060379,-241.42081009,0.00013394,2]
[338198246,1726383060389,-150.0,0.00013396,2]
[338198247,1726383060398,-150.0,0.0001341,2]
[338198248,1726383060408,-2086.13998,0.0001341,2]
[338198249,1726383060418,-150.0,0.00013414,2]
[338198250,1726383060427,-201.28530905,0.00013417,2]
[338198251,1726383060436,-150.0,0.00013424,2]
[338198252,1726383060446,-150.0,0.00013424,2]
[338198253,1726383060455,-607.64,0.00013424,2]
[338198254,1726383060465,-607.64,0.00013424,2]
[338198255,1726383060475,-150.0,0.00013425,2]
[338198256,1726383060484,-150.0,0.00013426,2]
[338198257,1726383060494,-150.0,0.00013427,2]
[338198258,1726383060503,-346.111409,0.00013427,2]
[338198259,1726383060513,-150.0,0.00013428,2]
[338198260,1726383060522,-150.0,0.00013428,2]
[338198261,1726383060531,-150.0,0.00013444,2]
[338198262,1726383060542,-150.0,0.00013445,2]
[338198263,1726383060551,-150.0,0.00013446,2]
[338198264,1726383060561,-150.0,0.00013451,2]
[338198265,1726383060573,-150.0,0.00013463,2]
[338198266,1726383060582,-150.0,0.00013463,2]
[338198267,1726383060592,-150.0,0.00013467,2]
[338198268,1726383060602,-150.0,0.00013469,2]
[338198269,1726383060611,-150.0,0.0001347,2]
[338198270,1726383060621,-150.0,0.00013472,2]
[338198271,1726383060631,-150.0,0.00013484,2]
[338198272,1726383060640,-150.0,0.00013484,2]
[338198273,1726383060650,-150.0,0.00013485,2]
[338198274,1726383060660,-150.0,0.00013487,2]
[338198275,1726383060669,-150.0,0.0001349,2]
[338198276,1726383060678,-150.0,0.00013493,2]
[338198277,1726383060688,-150.0,0.00013493,2]
[338198278,1726383060891,-150.0,0.00013496,2]
[338198279,1726383060901,-150.0,0.00013497,2]
[338198280,1726383060911,-150.0,0.00013498,2]
[338198281,1726383060921,-150.0,0.00013502,2]
[338198282,1726383060931,-155.01263887,0.00013506,2]
[338198283,1726383060941,-150.0,0.00013506,2]
[338198284,1726383060950,-150.0,0.00013506,2]
[338198285,1726383060960,-150.0,0.00013509,2]
[338198286,1726383060970,-150.0,0.00013511,2]
[338198287,1726383060979,-150.0,0.00013524,2]
[338198288,1726383060988,-150.0,0.0001353,2]
[338198289,1726383060998,-827.9691316,0.00013536,2]
[338198290,1726383061011,-1113.8308684,0.00013536,2]
[338198291,1726383061020,-2099.55,0.00013536,2]
[338198292,1726383061030,-517.08445381,0.00013536,2]
[338198293,1726383061040,-500.0,0.00013536,2]
[338198294,1726383061055,-1424.0,0.00013536,2]
[338198295,1726383061068,-276.91061512,0.00013536,2]
[338198296,1726383061092,-602.62493107,0.00013536,2]
[338198297,1726383061102,-338.95158508,0.00013536,2]
[338198298,1726383061114,-1712.17841492,0.00013536,2]
[338198299,1726383061124,-500.0,0.00013536,2]
[338198300,1726383061133,-2037.36,0.00013536,2]
[338198301,1726383061143,-958.71,0.00013536,2]
[338198302,1726383061157,-2428.29,0.00013536,2]
[338198303,1726383061167,-1831.95,0.00013536,2]
[338198304,1726383061176,-131.40606024,0.00013536,2]
[338198305,1726383061193,-1531.85830089,0.00013536,2]
[338198306,1726383061204,-1180.22303273,0.00013536,2]
[338198307,1726383061241,-548.10622179,0.00013536,2]
[338198308,1726383061252,-699.78547114,0.00013536,2]
[338198309,1726383061267,-1042.09077227,0.00013536,2]
[338198310,1726383061279,-1594.44684523,0.00013536,2]
[338198311,1726383062765,-387.60560453,0.00012989,2]
[338198312,1726383062776,-469.49439547,0.00012989,2]
[338198313,1726383062786,-500.0,0.00012989,2]
[338198314,1726383062795,-950.03444139,0.0001299,2]
[338198315,1726383062806,-381.47555861,0.0001299,2]
[338198316,1726383062815,-857.1,0.00013263,2]
[338198317,1726383062824,-1331.51,0.00013264,2]
[338198318,1726383062833,-1080.0,0.0001336,2]
[338198319,1726383062843,-1055.35329571,0.00013536,2]
[338198320,1726383062852,-2393.95,0.00013536,2]
[338198321,1726383062861,-312.59771496,0.00013536,2]
[338198322,1726383062872,-398.67149,0.00013536,2]
[338198323,1726383062892,-2931.34079504,0.00013536,2]
[338198324,1726383062901,-732.65920516,0.00013536,2]
[338198325,1726383062913,-1572.94079484,0.00013536,2]
[338198326,1726383062922,-1566.59,0.00013536,2]
[338198327,1726383062932,-1405.99,0.00013536,2]
[338198328,1726383062941,-591.24,0.00013536,2]
[338198329,1726383062951,-680.75,0.00013536,2]
[338198330,1726383062960,-1736.49,0.00013536,2]
[338198331,1726383062969,-34438.35,0.00013536,2]
[338198332,1726383062979,-907.88,0.00013536,2]
[338198333,1726383062988,-2204.36,0.00013536,2]
[338198334,1726383062998,-3656.69,0.00013536,2]
[338198335,1726383063007,-2880.29,0.00013536,2]
[338198336,1726383063016,-500.0,0.00013537,2]
[338198337,1726383063026,-500.0,0.00013537,2]
[338198338,1726383063035,-500.0,0.00013537,2]
[338198339,1726383063044,-500.0,0.00013537,2]
[338198340,1726383063054,-500.0,0.00013537,2]
[338198341,1726383063292,-500.0,0.00013537,2]
[338198342,1726383063303,-932.43,0.00013537,2]
[338198343,1726383063313,-500.0,0.00013537,2]
[338198344,1726383063324,-1273.26,0.00013537,2]
[338198345,1726383063334,-500.0,0.00013537,2]
[338198346,1726383063344,-565.68009676,0.00013537,2]
[338198347,1726383063354,-3019.17,0.00013537,2]
[338198348,1726383063364,-1488.59,0.00013537,2]
[338198349,1726383063374,-500.0,0.00013537,2]
[338198350,1726383063384,-500.0,0.00013537,2]
[338198351,1726383063394,-974.84,0.00013537,2]
[338198352,1726383063404,-2670.93,0.00013537,2]
[338198353,1726383063414,-500.0,0.00013537,2]
[338198354,1726383063425,-3979.68,0.00013537,2]
[338198355,1726383063435,-500.0,0.00013537,2]
[338198356,1726383063445,-2191.06,0.00013537,2]
[338198357,1726383063454,-500.0,0.00013537,2]
[338198358,1726383063464,-500.0,0.00013537,2]
[338198359,1726383063474,-1839.25,0.00013537,2]
[338198360,1726383063485,-2130.54,0.00013537,2]
[338198361,1726383063495,-1022.07,0.00013537,2]
[338198362,1726383063505,-5078.31,0.00013537,2]
[338198363,1726383063515,-500.0,0.00013537,2]
[338198364,1726383063525,-500.0,0.00013537,2]
[338198365,1726383063535,-526.3,0.00013537,2]
[338198366,1726383063544,-526.3,0.00013537,2]
[338198367,1726383063554,-2298.9,0.00013537,2]
[338198368,1726383063565,-500.0,0.00013537,2]
[338198369,1726383063575,-3029.5,0.00013537,2]
[338198370,1726383063586,-500.0,0.00013537,2]
[338198371,1726383063596,-2371.68,0.00013537,2]
[338198372,1726383063605,-500.0,0.00013537,2]
[338198373,1726383063615,-500.0,0.00013537,2]
[338198374,1726383063624,-500.0,0.00013537,2]
[338198375,1726383063634,-1221.11,0.00013537,2]
[338198376,1726383063643,-500.0,0.00013537,2]
[338198377,1726383063653,-500.0,0.00013537,2]
[338198378,1726383063662,-1783.09,0.00013537,2]
[338198379,1726383063672,-850.28,0.00013537,2]
[338198380,1726383063682,-500.0,0.00013537,2]
[338198381,1726383063691,-776.31,0.00013537,2]
[338198382,1726383063700,-1019.94,0.00013537,2]
[338198383,1726383063710,-500.0,0.00013537,2]
[338198384,1726383063719,-500.0,0.00013537,2]
[338198385,1726383063729,-808.65,0.00013537,2]
[338198386,1726383063738,-956.46,0.00013537,2]
[338198387,1726383063748,-500.0,0.00013537,2]
[338198388,1726383063757,-500.0,0.00013537,2]
[338198389,1726383063767,-1814.95,0.00013537,2]
[338198390,1726383063777,-500.0,0.00013537,2]
[338198391,1726383063787,-639.42,0.00013537,2]
[338198392,1726383063797,-500.0,0.00013537,2]
[338198393,1726383063806,-500.0,0.00013537,2]
[338198394,1726383063816,-500.0,0.00013537,2]
[338198395,1726383063826,-1814.14,0.00013537,2]
[338198396,1726383063836,-500.0,0.00013537,2]
[338198397,1726383063845,-500.0,0.00013537,2]
[338198398,1726383063855,-500.0,0.00013537,2]
[338198399,1726383063864,-500.0,0.00013537,2]
[338198400,1726383063875,-500.0,0.00013537,2]
[338198401,1726383063884,-1512.57,0.00013537,2]
[338198402,1726383063894,-500.0,0.00013537,2]
[338198403,1726383063904,-2434.44,0.00013537,2]
[338198404,1726383063914,-500.0,0.00013537,2]
[338198405,1726383063924,-500.0,0.00013537,2]
[338198406,1726383063934,-1884.48,0.00013537,2]
[338198407,1726383063944,-2091.49,0.00013537,2]
[338198408,1726383063953,-500.0,0.00013537,2]
[338198409,1726383063964,-500.0,0.00013537,2]
[338198410,1726383063973,-951.0,0.00013537,2]
[338198411,1726383063983,-510.61,0.00013537,2]
[338198412,1726383063994,-500.0,0.00013537,2]
[338198413,1726383064003,-500.0,0.00013537,2]
[338198414,1726383064014,-872.2,0.00013537,2]
[338198415,1726383064023,-500.0,0.00013537,2]
[338198416,1726383064032,-1364.88,0.00013537,2]
[338198417,1726383064043,-500.0,0.00013537,2]
[338198418,1726383064052,-500.0,0.00013537,2]
[338198419,1726383064062,-1583.25,0.00013537,2]
[338198420,1726383064073,-587.82,0.00013537,2]
[338198421,1726383064083,-1363.76,0.00013537,2]
[338198422,1726383064092,-500.0,0.00013537,2]
[338198423,1726383064101,-1848.3,0.00013537,2]
[338198424,1726383064112,-751.84,0.00013537,2]
[338198425,1726383064121,-500.0,0.00013537,2]
[338198426,1726383064131,-1853.92,0.00013537,2]